Workbook

Sheet паспорт
A1: ПАТ "УКРТРАНСГАЗ" | G1: ПАСПОРТ ФІЗИКО-ХІМІЧНИХ ПОКАЗНИКІВ ПРИРОДНОГО ГАЗУ № 651
A2: Філія "УМГ "ХАРКІВТРАНСГАЗ" | G2: переданого Сєвєродонецьким ЛВУМГ та прийнятого ПАТ "Луганськгаз"
A3: Сєвєродонецьке ЛВУМГ | G3: Маршрут № 651
A4: Вимірювальна хіміко-аналітична лабораторія
A5: Свідоцтво № РЬ089/2014 чинно до 06.06.2017 р. | K5: по газопроводу "Новопсков-Краматорськ" | V5: за період з | X5: 01.03.2017 р. | Z5: по | AA5: 31.03.2017 р.
A7: Число місяця | B7: Компонентний склад, мол. % | N7: Фізико-хімічні показники газу обчислені на основі компонентного складу, 101,325 кПа | X7: Температура точки роси за вологою (Р = 3.92 МПа), °С | Y7: Температура точки роси за вуглеводнями, °С | Z7: Вміст сірководню, г/м3 | AA7: Вміст меркаптанової сірки, г/м3 | AB7: Вміст механічних домішок, г/м3
N8: Густина абсолютна, кг/м3,при 20 °С, | O8: Температура вимірювання/згоряння при 20/25°С
B9: метан, С1 | C9: етан, С2 | D9: пропан, С3 | E9: ізо-бутан, і-С4 | F9: н-бутан, н-С4 | G9: нео-пентан, нео-С5 | H9: ізо-пентан, і-С5 | I9: н-пентан, н-С5 | J9: гексани та вищі, С6+ | K9: кисень, О2 | L9: азот, N2 | M9: діоксид вуглецю, CО2 | O9: Теплота згоряння нижча | R9: Теплота згоряння вища | U9: Число Воббе вище
O10: ккал/м³ | P10: МДж/м³ | Q10: кВт⋅год/м³ | R10: ккал/м³ | S10: МДж/м³ | T10: кВт⋅год/м³ | U10: ккал/м³ | V10: МДж/м³ | W10: кВт⋅год/м³
A11: 1 | O11: =P11*238.8459 -> 8085.435291 | P11: 33.8521 | Q11: =P11/3.6 -> 9.403361111 | R11: =S11*238.8459 -> 8960.996592 | S11: 37.5179 | T11: =S11/3.6 -> 10.42163889 | U11: =V11/0.0041868 -> 11681.73784 | V11: 48.9091 | W11: =V11/3.6 -> 13.58586111 | X11: -7.4 | Y11: -10 | AC11: =SUM(B11:M11)+$K$42+$N$42 -> 0
A12: 2 | O12: 8085.435291 | P12: 33.8521 | Q12: 9.403361111 | R12: 8960.996592 | S12: 37.5179 | T12: 10.42163889 | U12: 11681.73784 | V12: 48.9091 | W12: 13.58586111 | AC12: 0
A13: 3 | B13: 94.4788 | C13: 2.8753 | D13: 0.7415 | E13: 0.0864 | F13: 0.0943 | G13: 0.0034 | H13: 0.0172 | I13: 0.0126 | J13: 0.0262 | K13: 0.0112 | L13: 1.3853 | M13: 0.2678 | N13: 0.7086 | O13: =P13*238.8459 -> 8172.852891 | P13: 34.2181 | Q13: =P13/3.6 -> 9.505027778 | R13: =S13*238.8459 -> 9056.773798 | S13: 37.9189 | T13: =S13/3.6 -> 10.53302778 | U13: =V13/0.0041868 -> 11807.82459 | V13: 49.437 | W13: =V13/3.6 -> 13.7325 | AC13: 100 | AD13: =IF(AC13=100,"ОК"," ") -> ОК
A14: 4 | O14: =P14*238.8459 -> 8172.852891 | P14: 34.2181 | Q14: =P14/3.6 -> 9.505027778 | R14: =S14*238.8459 -> 9056.773798 | S14: 37.9189 | T14: =S14/3.6 -> 10.53302778 | U14: =V14/0.0041868 -> 11807.82459 | V14: 49.437 | W14: =V14/3.6 -> 13.7325 | AC14: 0 | AD14: =IF(AC14=100,"ОК"," ") -> 
A15: 5 | O15: 8172.852891 | P15: 34.2181 | Q15: 9.505027778 | R15: 9056.773798 | S15: 37.9189 | T15: 10.53302778 | U15: 11807.82459 | V15: 49.437 | W15: 13.7325 | AC15: 0
A16: 6 | O16: 8172.852891 | P16: 34.2181 | Q16: 9.505027778 | R16: 9056.773798 | S16: 37.9189 | T16: 10.53302778 | U16: 11807.82459 | V16: 49.437 | W16: 13.7325 | AC16: 0
A17: 7 | O17: 8172.852891 | P17: 34.2181 | Q17: 9.505027778 | R17: 9056.773798 | S17: 37.9189 | T17: 10.53302778 | U17: 11807.82459 | V17: 49.437 | W17: 13.7325 | AC17: 0
A18: 8 | O18: 8172.852891 | P18: 34.2181 | Q18: 9.505027778 | R18: 9056.773798 | S18: 37.9189 | T18: 10.53302778 | U18: 11807.82459 | V18: 49.437 | W18: 13.7325 | AC18: 0
A19: 9 | O19: 8172.852891 | P19: 34.2181 | Q19: 9.505027778 | R19: 9056.773798 | S19: 37.9189 | T19: 10.53302778 | U19: 11807.82459 | V19: 49.437 | W19: 13.7325 | AC19: 0
A20: 10 | O20: 8172.852891 | P20: 34.2181 | Q20: 9.505027778 | R20: 9056.773798 | S20: 37.9189 | T20: 10.53302778 | U20: 11807.82459 | V20: 49.437 | W20: 13.7325 | AC20: 0
A21: 11 | O21: 8172.852891 | P21: 34.2181 | Q21: 9.505027778 | R21: 9056.773798 | S21: 37.9189 | T21: 10.53302778 | U21: 11807.82459 | V21: 49.437 | W21: 13.7325 | AC21: 0
A22: 12 | O22: 8172.852891 | P22: 34.2181 | Q22: 9.505027778 | R22: 9056.773798 | S22: 37.9189 | T22: 10.53302778 | U22: 11807.82459 | V22: 49.437 | W22: 13.7325 | AC22: 0
A23: 13 | B23: 94.5638 | C23: 2.8309 | D23: 0.7478 | E23: 0.0853 | F23: 0.0915 | G23: 0.0035 | H23: 0.018 | I23: 0.0138 | J23: 0.0326 | K23: 0.0097 | L23: 1.3377 | M23: 0.2654 | N23: 0.7083 | O23: =P23*238.8459 -> 8176.722194 | P23: 34.2343 | Q23: =P23/3.6 -> 9.509527778 | R23: =S23*238.8459 -> 9061.073024 | S23: 37.9369 | T23: =S23/3.6 -> 10.53802778 | U23: =V23/0.0041868 -> 11815.8737 | V23: 49.4707 | W23: =V23/3.6 -> 13.74186111 | AC23: 100 | AD23: ОК
A24: 14 | O24: =P24*238.8459 -> 8176.722194 | P24: 34.2343 | Q24: =P24/3.6 -> 9.509527778 | R24: =S24*238.8459 -> 9061.073024 | S24: 37.9369 | T24: =S24/3.6 -> 10.53802778 | U24: =V24/0.0041868 -> 11815.8737 | V24: 49.4707 | W24: =V24/3.6 -> 13.74186111 | AC24: 0
A25: 15 | O25: 8176.722194 | P25: 34.2343 | Q25: 9.509527778 | R25: 9061.073024 | S25: 37.9369 | T25: 10.53802778 | U25: 11815.8737 | V25: 49.4707 | W25: 13.74186111 | AC25: 0
A26: 16 | O26: 8176.722194 | P26: 34.2343 | Q26: 9.509527778 | R26: 9061.073024 | S26: 37.9369 | T26: 10.53802778 | U26: 11815.8737 | V26: 49.4707 | W26: 13.74186111 | AC26: 0
A27: 17 | O27: 8176.722194 | P27: 34.2343 | Q27: 9.509527778 | R27: 9061.073024 | S27: 37.9369 | T27: 10.53802778 | U27: 11815.8737 | V27: 49.4707 | W27: 13.74186111 | AC27: 0
A28: 18 | O28: 8176.722194 | P28: 34.2343 | Q28: 9.509527778 | R28: 9061.073024 | S28: 37.9369 | T28: 10.53802778 | U28: 11815.8737 | V28: 49.4707 | W28: 13.74186111 | AC28: 0
A29: 19 | O29: 8176.722194 | P29: 34.2343 | Q29: 9.509527778 | R29: 9061.073024 | S29: 37.9369 | T29: 10.53802778 | U29: 11815.8737 | V29: 49.4707 | W29: 13.74186111 | AC29: 0
A30: 20 | O30: 8176.722194 | P30: 34.2343 | Q30: 9.509527778 | R30: 9061.073024 | S30: 37.9369 | T30: 10.53802778 | U30: 11815.8737 | V30: 49.4707 | W30: 13.74186111 | AC30: 0 | AD30: =IF(AC30=100,"ОК"," ") -> 
A31: 21 | O31: 8176.722194 | P31: 34.2343 | Q31: 9.509527778 | R31: 9061.073024 | S31: 37.9369 | T31: 10.53802778 | U31: 11815.8737 | V31: 49.4707 | W31: 13.74186111 | AC31: 0
A32: 22 | O32: 8176.722194 | P32: 34.2343 | Q32: 9.509527778 | R32: 9061.073024 | S32: 37.9369 | T32: 10.53802778 | U32: 11815.8737 | V32: 49.4707 | W32: 13.74186111 | AC32: 0
A33: 23 | B33: 88.0919 | C33: 3.5242 | D33: 1.6435 | E33: 0.2283 | F33: 0.4423 | G33: 0.009 | H33: 0.1 | I33: 0.0838 | J33: 0.0836 | K33: 0.0102 | L33: 3.7802 | M33: 2.003 | N33: 0.7692 | O33: =P33*238.8459 -> 8143.403191 | P33: 34.0948 | Q33: =P33/3.6 -> 9.470777778 | R33: =S33*238.8459 -> 9012.539537 | S33: 37.7337 | T33: =S33/3.6 -> 10.48158333 | U33: =V33/0.0041868 -> 11277.61059 | V33: 47.2171 | W33: =V33/3.6 -> 13.11586111 | Z33: 0.0002 | AA33: 0.005 | AB33: відс. | AC33: 100 | AD33: =IF(AC33=100,"ОК"," ") -> ОК
A34: 24 | O34: =P34*238.8459 -> 8143.403191 | P34: 34.0948 | Q34: =P34/3.6 -> 9.470777778 | R34: =S34*238.8459 -> 9012.539537 | S34: 37.7337 | T34: =S34/3.6 -> 10.48158333 | U34: =V34/0.0041868 -> 11277.61059 | V34: 47.2171 | W34: =V34/3.6 -> 13.11586111 | AC34: 0
A35: 25 | O35: 8143.403191 | P35: 34.0948 | Q35: 9.470777778 | R35: 9012.539537 | S35: 37.7337 | T35: 10.48158333 | U35: 11277.61059 | V35: 47.2171 | W35: 13.11586111 | AC35: 0
A36: 26 | O36: 8143.403191 | P36: 34.0948 | Q36: 9.470777778 | R36: 9012.539537 | S36: 37.7337 | T36: 10.48158333 | U36: 11277.61059 | V36: 47.2171 | W36: 13.11586111 | AC36: 0
A37: 27 | O37: 8143.403191 | P37: 34.0948 | Q37: 9.470777778 | R37: 9012.539537 | S37: 37.7337 | T37: 10.48158333 | U37: 11277.61059 | V37: 47.2171 | W37: 13.11586111 | AC37: 0
A38: 28 | O38: 8143.403191 | P38: 34.0948 | Q38: 9.470777778 | R38: 9012.539537 | S38: 37.7337 | T38: 10.48158333 | U38: 11277.61059 | V38: 47.2171 | W38: 13.11586111 | AC38: 0
A39: 29 | O39: 8143.403191 | P39: 34.0948 | Q39: 9.470777778 | R39: 9012.539537 | S39: 37.7337 | T39: 10.48158333 | U39: 11277.61059 | V39: 47.2171 | W39: 13.11586111 | AC39: 0
A40: 30 | O40: 8143.403191 | P40: 34.0948 | Q40: 9.470777778 | R40: 9012.539537 | S40: 37.7337 | T40: 10.48158333 | U40: 11277.61059 | V40: 47.2171 | W40: 13.11586111 | AC40: 0
A41: 31 | O41: =P41*238.8459 -> 8085.435291 | P41: 33.8521 | Q41: =P41/3.6 -> 9.403361111 | R41: =S41*238.8459 -> 8960.996592 | S41: 37.5179 | T41: =S41/3.6 -> 10.42163889 | U41: =V41/0.0041868 -> 11681.73784 | V41: 48.9091 | W41: =V41/3.6 -> 13.58586111 | AC41: 0
A42: Рівень одоризації відповідає чинним нормативним документам | O42: =SUMPRODUCT(O11:O41,' розрахунок'!G7:G37)/' розрахунок'!G38 -> 8158.210546 | P42: =SUMPRODUCT(P11:P41,' розрахунок'!G7:G37)/' розрахунок'!G38 -> 34.15679543 | Q42: =SUMPRODUCT(Q11:Q41,' розрахунок'!G7:G37)/' розрахунок'!G38 -> 9.487998732 | R42: =SUMPRODUCT(R11:R41,' розрахунок'!G7:G37)/' розрахунок'!G38 -> 9037.841723 | S42: =SUMPRODUCT(S11:S41,' розрахунок'!G7:G37)/' розрахунок'!G38 -> 37.83963519 | T42: =SUMPRODUCT(T11:T41,' розрахунок'!G7:G37)/' розрахунок'!G38 -> 10.51100978
H43: Середньозважене значення теплоти згоряння:
B46: Начальник управління Сєвєродонецького ЛВУМГ Головко Ю.О.
C47: Підрозділу підприємства, якому підпорядкована лабораторія | O47: прізвище | R47: підпис | V47: дата
B48: Інженер ІІ кат.вимірювальної хіміко-аналітичної лабораторії Єрьоменко М.О.
C49: Лабораторія, де здійснювалось вимірювання газу | O49: прізвище | R49: підпис | V49: дата
B50: Начальник служби метрології Ісаєв В.С.
C51: Підрозділу, відповідального за облік газу за маршрутом | O51: прізвище | R51: підпис | V51: дата

Sheet розрахунок (hidden)
A2: Додаток до Паспорту фізико-хімічних показників природного газу по маршруту № 651
A4: Число місяця | B4: Теплота згоряння вища, МДж/м3 | C4: Луганська область | G4: Загальний обсяг газу, м3
C5: Обсяг газу переданого за добу, м3
C6: ГРС с.Смолянинове | D6: ГРС с. Федчине | E6: ГРС с.Чабанівка | F6: ГРС с.Новоастрахань
A7: 1 | B7: 37.5179 | C7: 7346.93 | D7: 13643.23 | E7: 1476.96 | F7: 9733.21 | G7: =SUM(C7:F7) -> 32200.33
A8: 2 | B8: 37.5179 | C8: 7228.62 | D8: 14069.56 | E8: 1505.39 | F8: 9607.93 | G8: 32411.5
A9: 3 | B9: 37.9189 | C9: 7302.7 | D9: 13967.88 | E9: 1519 | F9: 9570.85 | G9: 32360.43
A10: 4 | B10: 37.9189 | C10: 7332.26 | D10: 13505.52 | E10: 1427.89 | F10: 9658.15 | G10: 31923.82
A11: 5 | B11: 37.9189 | C11: 7057.2 | D11: 13356.78 | E11: 1410.77 | F11: 9347.6 | G11: 31172.35
A12: 6 | B12: 37.9189 | C12: 6482.61 | D12: 12179.4 | E12: 1323.52 | F12: 8795.47 | G12: 28781
A13: 7 | B13: 37.9189 | C13: 6948.2 | D13: 13051.93 | E13: 1370.21 | F13: 9157.46 | G13: 30527.8
A14: 8 | B14: 37.9189 | C14: 7158.6 | D14: 13300.85 | E14: 1390.4 | F14: 9384.75 | G14: 31234.6
A15: 9 | B15: 37.9189 | C15: 6779.71 | D15: 12342.15 | E15: 1332.23 | F15: 8732.75 | G15: 29186.84
A16: 10 | B16: 37.9189 | C16: 6572.96 | D16: 12104.48 | E16: 1316.77 | F16: 8428.85 | G16: 28423.06
A17: 11 | B17: 37.9189 | C17: 6648.28 | D17: 12437.66 | E17: 1397.85 | F17: 8640.81 | G17: 29124.6
A18: 12 | B18: 37.9189 | C18: 7154.1 | D18: 13002.75 | E18: 1444.14 | F18: 9266.5 | G18: 30867.49
A19: 13 | B19: 37.9369 | C19: 7567.75 | D19: 13488.5 | E19: 1460.84 | F19: 9311.79 | G19: 31828.88
A20: 14 | B20: 37.9369 | C20: 7445.4 | D20: 13390.02 | E20: 1310.66 | F20: 9244.65 | G20: 31390.73
A21: 15 | B21: 37.9369 | C21: 6759.34 | D21: 12180.63 | E21: 1295.83 | F21: 8540.33 | G21: 28776.13
A22: 16 | B22: 37.9369 | C22: 6912.97 | D22: 12945.21 | E22: 1243.53 | F22: 8700.99 | G22: 29802.7
A23: 17 | B23: 37.9369 | C23: 6994.87 | D23: 13257.47 | E23: 1339.46 | F23: 8821.52 | G23: 30413.32
A24: 18 | B24: 37.9369 | C24: 7409.24 | D24: 14396.76 | E24: 1417.17 | F24: 9589.83 | G24: 32813
A25: 19 | B25: 37.9369 | C25: 7820.29 | D25: 15433.92 | E25: 1474.81 | F25: 9874.57 | G25: 34603.59
A26: 20 | B26: 37.9369 | C26: 7542.4 | D26: 14245.75 | E26: 1410.93 | F26: 9324.83 | G26: 32523.91
A27: 21 | B27: 37.9369 | C27: 7761.73 | D27: 13323.38 | E27: 1321.1 | F27: 9099.67 | G27: 31505.88
A28: 22 | B28: 37.9369 | C28: 6795.44 | D28: 12208.54 | E28: 1267.59 | F28: 8780.07 | G28: 29051.64
A29: 23 | B29: 37.7337 | C29: 5685.36 | D29: 10206.21 | E29: 1082.42 | F29: 7882.32 | G29: 24856.31
A30: 24 | B30: 37.7337 | C30: 5525.41 | D30: 10020.59 | E30: 1131.57 | F30: 7539.18 | G30: 24216.75
A31: 25 | B31: 37.7337 | C31: 5974.88 | D31: 10892.94 | E31: 1219.36 | F31: 7773.15 | G31: 25860.33
A32: 26 | B32: 37.7337 | C32: 6894.97 | D32: 11910.66 | E32: 1228.93 | F32: 8526.61 | G32: 28561.17
A33: 27 | B33: 37.7337 | C33: 7737.81 | D33: 14217.58 | E33: 1467.93 | F33: 9753.26 | G33: 33176.58
A34: 28 | B34: 37.7337 | C34: 7675.41 | D34: 13573.25 | E34: 1484.11 | F34: 9384.79 | G34: 32117.56
A35: 29 | B35: 37.7337 | C35: 7018.24 | D35: 11847.96 | E35: 1319.1 | F35: 8518.93 | G35: =SUM(C35:D35:E35:F35) -> 28704.23
A36: 30 | B36: 37.7337 | C36: 7426.19 | D36: 12667.15 | E36: 1375.92 | F36: 9234 | G36: =SUM(C36:D36:E36:F36) -> 30703.26
A37: 31 | B37: 37.5179 | C37: 7084.07 | D37: 12238.2 | E37: 1341.23 | F37: 8922.02 | G37: =SUM(C37:D37:E37:F37) -> 29585.52
A38: Загальний обсяг газу, м3 | C38: =SUM(C7:C37) -> 218043.94 | D38: 399406.91 | E38: 42107.62 | F38: 279146.84 | G38: 938705.31
A39: Енергія, МДж | C39: =SUMPRODUCT(B7:B37,C7:C37) -> 8250625.651 | D39: =SUMPRODUCT(B7:B37,D7:D37) -> 15113821.71 | E39: =SUMPRODUCT(B7:B37,E7:E37) -> 1593275.341 | F39: =SUMPRODUCT(B7:B37,F7:F37) -> 10562543.79 | G39: =SUMPRODUCT(B7:B37,G7:G37) -> 35520266.48
A40: Теплота згоряння (середньозважене значення за місяць), МДж/м³ | C40: =C39/C38 -> 37.83927978 | D40: 37.84066156 | E40: 37.83817136 | F40: 37.83866508 | G40: 37.83963519
A41: Теплота згоряння (середньозважене значення за місяць), ккал/м³ | C41: =C40*238.8459 -> 9037.756835 | D41: 9038.086867 | E41: 9037.492093 | F41: 9037.610015 | G41: 9037.841723
A42: Теплота згоряння (середньозважене значення за місяць), кВт*год./м³ | C42: =C40/3.6 -> 10.51091105 | D42: 10.51129488 | E42: 10.51060316 | F42: 10.5107403 | G42: 10.51100978

Sheet додаток
A2: Додаток до Паспорту фізико-хімічних показників природного газу №651
A4: Область | B4: ГРС, прямий споживач | C4: Cередньозважене значення вищої теплоти згоряння
C5: МДж/м³ | D5: ккал/м³ | E5: кВт*год./м³
A6: Луганська область | B6: ГРС с.Смолянинове | C6: 37.84 | D6: 9038 | E6: 10.51
B7: ГРС с. Федчине | C7: 37.84 | D7: 9038 | E7: 10.51
B8: ГРС с.Чабанівка | C8: 37.84 | D8: 9037 | E8: 10.51
B9: ГРС с.Новоастрахань | C9: 37.84 | D9: 9038 | E9: 10.51
A10: Середньозважене значення вищої теплоти згоряння по маршруту №651 | C10: 37.84 | D10: 9038 | E10: 10.51
A14: Начальник управління Сєвєродонецького ЛВУМГ Головко Ю.О.
A15: Підрозділу підприємства, якому підпорядкована лабораторія | D15: прізвище | E15: підпис | F15: дата
A16: Інженер ІІ кат.вимірювальної хіміко-аналітичної лабораторії Єрьоменко М.О.
A17: Лабораторія, де здійснювалось вимірювання газу | D17: прізвище | E17: підпис | F17: дата
A18: Начальник служби метрології Ісаєв В.С.
A19: Підрозділу, відповідального за облік газу за маршрутом | D19: прізвище | E19: підпис | F19: дата
F23: дата
F25: дата
F27: дата

Sheet variablesList (hidden)
A1: 3 | B1: x:\gaysin | C1: 10, 11, 24, 25, 127, 128, 132, 180, 207, 215 | D1: x:\
B2: x:\Illinci
B3: x:\Talne
